Cogmind - Beta 9 @@@ ROGUE MODE // 2019.10.22 @ 18:52:38 // Halloween2019/Abominations Player: Nikolayag Result: Destroyed by Lesser Abomination with Improved Light Cannon Performance ------------- Evolutions (0) 0 Regions Visited (1) 200 Robots Destroyed (11) 55 Value Destroyed (547) 547 Prototype IDs (0) 0 Alien Tech Used (0) 0 Bonus (0) 0 TOTAL SCORE: 802 Bonus ------- None Cogmind --------- Core Integrity 0/250 Matter 261/300 Energy 100/100 System Corruption 12% Temperature Cool (0) Location -10/Materials Parts ------- Power (1) Propulsion (2) Utility (2) Large Storage Unit Large Storage Unit Weapon (2) Light Assault Rifle Inventory (16) Ion Engine Light Treads Improved Treads Improved Treads Improved Treads Improved Treads Wheel Compact Wheel Cooling System Cooling System Cooling System Cooling System Small Storage Unit Grenade Launcher Grenade Launcher Peak State ------------ Power Light Ion Engine Propulsion Light Treads Wheel Utility Large Storage Unit Large Storage Unit Weapon Medium Laser Assault Rifle Inventory Ion Engine Light Treads Improved Treads Improved Treads Improved Treads Improved Treads Compact Wheel Cooling System Cooling System Cooling System Small Storage Unit Assault Rifle Grenade Launcher [Rating: 9] Favorites ----------- Power Light Ion Engine Engine Light Ion Engine Propulsion Light Treads Treads Light Treads Wheel Wheel Utility Large Storage Unit Storage Large Storage Unit Weapon Assault Rifle Energy Gun Medium Laser Ballistic Gun Assault Rifle Build | -11 -10 ------- Run | Scr Mat Slots Evolved . | . . Power . | . . Propulsion . | . . Utility . | . . Weapon . | . . Parts Attached 14 | 7 7 Power 2 | 1 1 Engine 2 | 1 1 Core . | . . Reactor . | . . Propulsion 3 | 2 1 Treads 1 | 1 . Leg . | . . Wheel 2 | 1 1 Hover . | . . Flight . | . . Utility 4 | 2 2 Device . | . . Storage 4 | 2 2 Processor . | . . Hackware . | . . Protection . | . . Artifact . | . . Weapon 5 | 2 3 Energy Gun 2 | 1 1 Energy Cannon . | . . Ballistic Gun 3 | 1 2 Ballistic Cannon . | . . Launcher . | . . Special Weapon . | . . Impact Weapon . | . . Slashing Weapon . | . . Piercing Weapon . | . . Special Melee Weapon . | . . Unidentified Prototypes . | . . Parts Lost 8 | . 8 Power 2 | . 2 Propulsion 2 | . 2 Utility . | . . Weapon 4 | . 4 Highest Loss Streak 5 | . 5 Average Slot Usage (%) 97 | . 97 Engine 13 | . 13 Treads 13 | . 13 Wheel 13 | . 13 Storage 28 | . 28 Energy Gun 8 | . 8 Ballistic Gun 18 | . 18 Naked Turns . | . . Heaviest Build 41 | 15 41 Greatest Support 20 | 20 16 Greatest Overweight (x) 4 | 1 4 Average Overweight (x) 2 | . 2 Largest Inventory Capacity 16 | 8 16 Average Capacity 13 | 6 15 Most Carried 16 | 4 16 Average Carried 11 | 3 13 Final Capacity 16 | . 16 Final Carried 15 | . 15 Class Distribution -------------------- 100% | Mutant Dominant Class ---------------- Mutant | -10/Materials Resources | -11 -10 ----------- Run | Scr Mat Matter Collected 439 | 276 163 Remotely . | . . Salvage Created 551 | 93 458 Parts 35 | 1 34 Haulers Intercepted . | . . Recyclers Shooed . | . . Parts Field Recycled . | . . Retrieved Matter . | . . Parts Self-Destructed . | . . Prevented . | . . Kills | -11 -10 ------- Run | Scr Mat Combat Hostiles Destroyed 9 | . 9 Guns 9 | . 9 Classes Destroyed 3 | 1 2 Worker 1 | . 1 Recycler 1 | 1 . Abomination 9 | . 9 Best Kill Streak 5 | 1 5 Combat Bots Only 4 | . 4 Max Kills in Single Turn 1 | 1 1 Gunslinging . | . . Exploded . | . . Melee . | . . Uniques/NPCs Destroyed . | . . Combat | -11 -10 -------- Run | Scr Mat Damage Taken 902 | . 902 Core 259 | . 259 Absorbed by Shields . | . . Core Remaining (%) 100 | 100 . Volleys Fired 44 | 2 42 Largest 2 | 2 2 Hottest 70 | 70 70 Shots Fired 76 | 4 72 Gun 76 | 4 72 Cannon . | . . Launcher . | . . Special . | . . Kinetic 54 | 2 52 Thermal 22 | 2 20 Explosive . | . . Electromagnetic . | . . Robot Hit Streak 16 | 3 16 Robot Miss Streak 6 | . 6 Penetration Max . | . . Secondary Targets . | . . Shots Hit Robots 55 | 3 52 Core Hits 27 | 2 25 Critical Hits . | . . Critical Kills . | . . Critical Parts Destroyed . | . . Melee Attacks . | . . Impact . | . . Slashing . | . . Piercing . | . . Sneak Attacks . | . . Combat Hostiles . | . . Follow-up Attacks . | . . Damage Inflicted 735 | 35 700 Guns 732 | 35 697 Cannons . | . . Explosions . | . . Melee . | . . Ramming 3 | . 3 Kinetic 504 | 11 493 Thermal 228 | 24 204 Explosive . | . . Electromagnetic . | . . Impact . | . . Slashing . | . . Piercing . | . . Highest Corruption 12 | . 12 Average Corruption 7 | . 7 Corruption Purged . | . . Effects 12 | . 12 Message Errors 1 | . 1 Matter Fused 3 | . 3 Parts Rejected 1 | . 1 Data Loss (major) 1 | . 1 Targeting Errors 5 | . 5 Weapon Failures 1 | . 1 Overload Shots . | . . Overflow Damage . | . . Projectiles . | . . Explosions . | . . Melee . | . . Knockbacks . | . . Impact . | . . Kinetic . | . . Secondary . | . . Self-Inflicted Damage 1 | . 1 Shots . | . . Rammed 1 | . 1 Targets Rammed 1 | . 1 Kicked . | . . Crushed . | . . Highest Temperature 370 | 18 370 Average Temperature 69 | 10 73 Received Heat Transfer 72 | . 72 Siege Activations . | . . Robots Corrupted . | . . Combat Hostiles . | . . Parts Fried . | . . Impact Corruptions . | . . Robots Melted . | . . Combat Hostiles . | . . Parts Melted . | . . Heat Transferred 185 | 74 111 Parts Sabotaged . | . . Parts Stolen . | . . Parts Stripped . | . . Power Chain Reactions . | . . Missiles Intercepted . | . . Alert | -11 -10 ------- Run | Scr Mat Peak Influence 38 | 5 38 Average Influence 13 | 2 15 Maximum Alert Level . | . . Low Security (%) 100 | . . Level 1 . | . . Level 2 . | . . Level 3 . | . . Level 4 . | . . Level 5 . | . . High Security . | . . Max Security . | . . Squads Dispatched 2 | . 2 Investigation 1 | . 1 Extermination . | . . Reinforcement 1 | . 1 Assault . | . . Garrison . | . . Intercept . | . . Construction Impeded . | . . Haulers Reinforced . | . . Stealth | -11 -10 --------- Run | Scr Mat Distress Signals 1 | . 1 Communications Jammed . | . . Distress Signals . | . . Times Spotted 13 | . 13 Peak Tracking Total 4 | . 4 Tactical Retreats 3 | . 3 Traps | -11 -10 ------- Run | Scr Mat Traps Triggered . | . . Indirectly . | . . Trap Hack Attempts . | . . Triggered . | . . Disarmed . | . . Reprogrammed . | . . Reused . | . . Traps Extracted . | . . Installed . | . . Triggered . | . . Machines | -11 -10 ---------- Run | Scr Mat Machines Disabled . | . . Max in Single Turn . | . . Machines Sabotaged . | . . Garrisons Compromised . | . . Overloaded Fab Kills . | . . Fab Network Shutdowns . | . . Hacking | -11 -10 --------- Run | Scr Mat Machines Accessed 2 | . 2 Terminals 2 | . 2 Fabricators . | . . Repair Stations . | . . Recycling Units . | . . Scanalyzers . | . . Garrison Access . | . . Total Hacks 9 | . 9 Successful 7 | . 7 Failed 2 | . 2 Catastrophic 1 | . 1 Database Lockouts . | . . Manual 9 | . 9 Terminals 9 | . 9 Fabricators . | . . Repair Stations . | . . Recycling Units . | . . Scanalyzers . | . . Garrison Access . | . . Terminal Hacks 3 | . 3 Terminal Index 1 | . 1 Zone Layout 2 | . 2 Fabricator Hacks . | . . Repair Station Hacks . | . . Recycling Unit Hacks . | . . Scanalyzer . | . . Garrison Access Hacks . | . . Unauthorized Hacks 8 | . 8 Terminals 4 | . 4 Track 2 | . 2 Botnet 2 | . 2 Fabricators . | . . Repair Stations . | . . Recycling Units . | . . Scanalyzers . | . . Garrison Access . | . . Data Cores Recovered . | . . Used . | . . Hacking Detections 2 | . 2 Full Trace Events . | . . Feedback Events . | . . Feedback Blocked . | . . Robot Schematics Acquired . | . . Robots Built . | . . Matter . | . . Time . | . . Total Robot Build Rating . | . . Part Schematics Acquired . | . . Parts Built . | . . Matter . | . . Time . | . . Total Part Build Rating . | . . Parts Repaired . | . . Time . | . . Parts Recycled . | . . Recycled Matter . | . . Retrieved Matter . | . . Retrieved Components . | . . Parts Scanalyzed . | . . Part Schematics Acquired . | . . Parts Damaged . | . . Bothacking | -11 -10 ------------ Run | Scr Mat Used RIF Installer . | . . Robots Hacked . | . . Non-combat . | . . Combat . | . . Robot Hacks Applied . | . . Relay Couplers Released . | . . Robots Rewired . | . . Allies Hacked . | . . Hacks Repelled . | . . Allies | -11 -10 -------- Run | Scr Mat Total Allies . | . . Largest Group . | . . Highest-Rated Group . | . . Highest-Rated Ally . | . . Total Orders . | . . Ally Attacks . | . . Total Damage . | . . Kills . | . . Allies Corrupted . | . . Allies Melted . | . . Intel | -11 -10 ------- Run | Scr Mat Robot Analysis Total . | . . Derelict Logs Recovered . | . . Drone Launches . | . . Drone Recoveries . | . . Exploration | -11 -10 ------------- Run | Scr Mat Turns Passed 470 | 76 394 Spaces Moved 243 | 63 180 Core 5 | 5 . Treads 1 | 1 . Legs . | . . Wheels 237 | 57 180 Hover . | . . Flight . | . . Fastest Speed 50 | 50 90 Average Speed 103 | 86 109 Slowest Speed 160 | 160 120 Overloaded Moves . | . . Propulsion Burnouts . | . . Robots Hopped . | . . Cave-ins Triggered . | . . Exploration Rate (%) 18 | 3 33 Regions Visited 1 Branch Regions . Pre-discovered Areas . | . . Known Exits Taken . | . . Unknown Exits Taken 1 | 1 . Scrap Searched . | . . Spaces Dug . | . . Terrain Destroyed . | . . Melee . | . . Projectile . | . . AOE . | . . Actions | -11 -10 --------- Run | Scr Mat Total 328 | 77 251 Wait 6 | 1 5 Move 242 | 62 180 Hop . | . . Pick Up 20 | 5 15 Fast Attach 6 | 6 . Attach 6 | 1 5 Detach . | . . Swap 2 | . 2 Drop 1 | . 1 Fire 44 | 2 42 Melee . | . . Ram 1 | . 1 Kick . | . . Crush . | . . Escape Stasis . | . . Rewire . | . . Trap . | . . Miscellaneous . | . . Route ------- -11/Scrapyard -10/Materials (discovered 1 exit: [*Mat]) History --------- Turn | Location | Event 15 | -11/Scrapyard | Discovered new exit (range 15) 77 | -11/Scrapyard | Entered Materials 249 | -10/Materials | Discovered new exit (range 5) 308 | -10/Materials | Build established: Mutant 423 | -10/Materials | Core integrity fell below 50% 427 | -10/Materials | Core integrity fell below 20% 440 | -10/Materials | System corruption reached 10% 471 | -10/Materials | Destroyed by Lesser Abomination with Improved Light Cannon Last Messages --------------- 00443_ Hungry Anomaly eats Lrg. Matter Pod. 00443_ Acquired Com. Wheel. 00444_ Frozen by Ice Anomaly. 00446_ 61 Matter blinks away. 00456_ Frozen by Ice Anomaly. 00460_ Lesser Abomination feeds off Hungry Anomaly, taking Transport Network Coupler. 00461_ Ion Engine destroyed. 00463_ Lesser Abomination spits out Sml. Matter Pod. 00463_ Lesser Abomination feeds off Hungry Anomaly, taking Lrg. Matter Pod. 00464_ System corrupted: Com. Wheel rejected. 00464_ Frozen by Ice Anomaly. 00468_ Lgt. Treads destroyed. 00469_ Lesser Abomination spits out Com. Wheel. 00469_ Lesser Abomination absorbs Com. Wheel. 00469_ Knocked back. 00470_ Lesser Abomination spits out Wheel. 00470_ Lesser Abomination absorbs Com. Wheel. 00470_ Frozen by Ice Anomaly. Map ----- +----------------------------------------------------+ | ?????????????????????????????????????????????????? | | ?????????????????????????????????????????????????? | | ?????????????????????????????????????????????????? | | ?????????????????????????????????????????????????? | | ?????????????????????????????????????????????????? | | ?????????????????????????????????????????????????? | | ?????????????????????????????????????????????????? | | ?????????????????????????????????????????????????? | | ?????????????????????????????????????????????????? | | ?????????????????????????????????????????????????? | | ?????????????????????????????????????????????????? | | ?????????????????????????????????????????????????? | | # #???# """ #????????????????????????????????? | | # #???# #????????????????????????????????? | | #+###############????????????????????????????????? | | # #??????????????????????????????????????? | | #A #??????????????????????????????????????? | | # """ """ #??????????########????????????????????? | | # """ """ #??????????# #????????????????????? | | + """ """ #??????????# #????????????????????? | | # #??????????# #????????????????????? | | # #???######## #????????????????????? | | # #???# #? #????????????????????? | | #####/######### #??? #????????????????????? | | #### %!% % + "% ######+####/## #?????????? | | # ##### """ # @ ! #?????????? | | "" # #???# "" # n =A #?????????? | | "T # #???# """ / % #?????????? | | "" # ##+##### "" # #######+## #?????????? | | # # # """ # #????????????###?????????? | | # = # """ # """ # #????????????????????????? | | +!%!# """ # """ # #?????????#####??????????? | | #=!=# """ # " # #?????????# #??????????? | | #### !# % # ! # #?????????# #??????????? | | =#!""" ####### ########### #??????????? | | !%+ """ #?????# #??????????? | | ^ ^^ A%# """ #?????# !!#??????????? | | %#= #?????# !!#??????????? | | % # #????####+## ## #####??????????? | | # #???? # ##! !#???????????? | | # % # ! #??? """ # ##! !#???????????? | | # % # #???""""" # ###! !##???????????? | | # ########?? """"" # #?######????????????? | | #+## % #????????# """"" # #???????????????????? | | # #????????# """ # ######??????????????? | | T" # #????????# # #??????????????? | | + #????????# + #??????????????? | | # < #????????# # #??????????????? | | # #????????############+## #??????????????? | | #####??????????????# # #??????????????? | +----------------------------------------------------+ Best States ------------- Heat Dissipation 25 Energy Generation 10 Energy Capacity 250 Matter Stores 300 Matter Capacity 300 Sight Range 16 Terrain Scan Density 10 Evasion (%) 42 Recoil Reduction 1 Item Schematics ----------------- None Robot Schematics ------------------ None Fabricated ------------ Nothing Alien Tech Used ----------------- None Achievements -------------- None Challenges ------------ None Game ------ Seed FlyingDamperImmobilizer Manual? 0 Play Time 00:07:47 Cumulative 154.6 hours Start 2019.10.22 @ 18:21:29 End 2019.10.22 @ 18:52:38 Sessions 1 Manual Loads 0 Difficulty Rogue Special Mode Halloween2019/Abominations Game No. 150 Rogue 150 Adventurer 0 Explorer 0 Win Type - Total 3 Types 3/0/0/0/0/0/0 Lore% 48 Gallery% 67 Achievement% 42 Wizard Run 0 Options --------- ASCII 0 Keyboard 1 Movement Numpad Keybinds 0 Fullscreen 1 Font 18/SmallcapsGlow Map View 76x50 Tactical HUD 1 Map Filters NONE Filters NONE Steam 1 RUN: 95d606bf-47bc-480d-ba76-aef53178cdec